bitfinex-derivatives/quotes_BTCF0:USTF0_20210706
["timestamp","ask_amount","ask_price","bid_price","bid_amount"]
[1625559727446,0.07510532,34791.0,34789.0,0.24057544]
[1625559727696,0.01610537,34790.0,34789.0,0.24057544]
[1625559727949,0.01610537,34790.0,34789.0,0.2439799]
[1625559728049,0.25668081,34790.0,34789.0,0.2439799]
[1625559728249,0.24057544,34790.0,34789.0,0.2439799]
[1625559728499,0.2566806,34790.0,34789.0,0.2439799]
[1625559730605,0.2566806,34790.0,34789.0,0.24057544]
[1625559731305,0.3156806,34790.0,34789.0,0.24057544]
[1625559734619,0.2566806,34790.0,34789.0,0.24057544]
[1625559735476,0.01610516,34790.0,34789.0,0.56264544]
[1625559735583,0.01610516,34790.0,34789.0,0.62164544]
[1625559735678,1.22225088,34794.0,34789.0,0.62164544]
[1625559735679,1.22225088,34794.0,34789.0,2.201998]
[1625559735774,0.50991614,34790.0,34789.0,2.630563]
[1625559735974,0.50991614,34790.0,34789.0,2.62715898]
[1625559736225,0.50991614,34790.0,34789.0,2.63056287]
[1625559736627,0.50990751,34792.0,34789.0,2.63056287]
[1625559736926,0.50990751,34792.0,34791.0,1.51696153]
[1625559737026,0.50990751,34792.0,34791.0,1.57596153]
[1625559737229,0.50990751,34792.0,34791.0,2.00875253]
[1625559737327,0.50990751,34792.0,34791.0,2.01215651]
[1625559737478,1.22225088,34794.0,34791.0,2.01215651]
[1625559737729,1.22225088,34794.0,34792.0,1.51460705]
[1625559737830,0.01610357,34793.0,34792.0,1.57701109]
[1625559738128,0.01610357,34793.0,34792.0,1.81758653]
[1625559738229,0.01610357,34793.0,34792.0,1.82523453]
[1625559739786,0.35597654,34793.0,34792.0,3.17098808]
[1625559740085,0.01610357,34793.0,34792.0,3.17098808]
[1625559740638,1.22225088,34794.0,34792.0,3.17098808]
[1625559740740,0.01610345,34793.0,34792.0,3.17098808]
[1625559740937,0.01610345,34793.0,34792.0,0.31062748]
[1625559741338,0.01610345,34793.0,34792.0,3.17011021]
[1625559741639,0.01610345,34793.0,34792.0,3.11111021]
[1625559741740,0.01610345,34793.0,34792.0,1.59726641]
[1625559741840,0.01610345,34793.0,34792.0,1.59386237]
[1625559742444,0.01610345,34793.0,34792.0,1.64521437]
[1625559742544,0.01610345,34793.0,34792.0,1.58621437]
[1625559745000,1.20515722,34793.0,34792.0,2.76615032]
[1625559747559,0.01610345,34793.0,34792.0,2.76615032]
[1625559747956,1.20503023,34793.0,34792.0,2.76615032]
[1625559750364,0.01610345,34793.0,34792.0,2.76615032]
[1625559751972,1.20502183,34793.0,34792.0,2.76615032]
[1625559752220,1.20502183,34793.0,34792.0,2.76955412]
[1625559752420,0.01610345,34793.0,34792.0,2.76955412]
[1625559752821,1.03518589,34793.0,34792.0,3.77882309]
[1625559753922,0.01610345,34793.0,34792.0,3.77882309]
[1625559755828,0.01610345,34793.0,34792.0,4.20845009]
[1625559755979,0.01610345,34793.0,34792.0,2.86281116]
[1625559756533,0.01610345,34793.0,34792.0,5.72142519]
[1625559761094,0.01610345,34793.0,34792.0,5.78042519]
[1625559763148,1.39222401,34794.0,34792.0,5.78042519]
[1625559763498,1.39222401,34794.0,34793.0,0.00340343]
[1625559763601,1.39222401,34794.0,34793.0,5.10783539]
[1625559763799,1.40833345,34794.0,34793.0,5.10783539]
[1625559764100,1.74808816,34794.0,34793.0,5.10783539]
[1625559765154,1.74808816,34794.0,34793.0,5.04883539]
[1625559765354,1.74808816,34794.0,34793.0,5.10783539]
[1625559765454,1.74808816,34794.0,34793.0,5.04883539]
[1625559765655,1.23836032,34794.0,34793.0,3.5352058]
[1625559766007,2.25729594,34794.0,34793.0,3.5352058]
[1625559766258,2.25729594,34794.0,34793.0,3.5942058]
[1625559766606,2.25729594,34794.0,34793.0,3.5352058]
[1625559766857,1.23836032,34794.0,34793.0,3.5352058]
[1625559767057,1.23836032,34794.0,34793.0,3.5942058]
[1625559767410,1.23836032,34794.0,34793.0,3.5352058]
[1625559767758,2.25732921,34794.0,34793.0,3.5942058]
[1625559768060,1.57811349,34794.0,34793.0,5.10430821]
[1625559768509,1.74807446,34794.0,34793.0,5.10430821]
[1625559768864,1.57811349,34794.0,34793.0,5.10430821]
[1625559769160,1.23836032,34794.0,34793.0,5.10430821]
[1625559772020,1.74806225,34794.0,34793.0,5.10430821]
[1625559773374,1.74806225,34794.0,34793.0,5.53333821]
[1625559778537,1.73195281,34794.0,34793.0,5.53333821]
[1625559778685,1.748063,34794.0,34793.0,5.53333821]
[1625559782643,1.748063,34794.0,34793.0,6.20592303]
[1625559786100,1.57810576,34794.0,34793.0,6.20592303]
[1625559786651,1.7480561,34794.0,34793.0,6.20592303]
[1625559787458,1.57810576,34794.0,34793.0,6.20592303]
[1625559790461,1.74808157,34794.0,34793.0,6.20592303]
[1625559791459,1.23836107,34794.0,34793.0,6.20592303]
[1625559792313,1.4083512,34794.0,34793.0,6.20592303]
[1625559793966,1.23836107,34794.0,34793.0,6.20592303]
[1625559794369,1.40837877,34794.0,34793.0,6.20592303]
[1625559794769,1.23836107,34794.0,34793.0,6.20592303]
[1625559795071,1.40837896,34794.0,34793.0,6.20592303]
[1625559795524,1.23836107,34794.0,34793.0,6.20592303]
[1625559796326,1.74821946,34794.0,34793.0,6.20592303]
[1625559796624,2.05854946,34794.0,34793.0,6.20592303]
[1625559797930,1.88854005,34794.0,34793.0,6.20592303]
[1625559798680,1.40738917,34794.0,34793.0,6.20592303]
[1625559799280,1.40738917,34794.0,34793.0,6.44649847]
[1625559799432,1.90306058,34794.0,34793.0,6.44649847]
[1625559799544,1.90306058,34794.0,34793.0,5.77689303]
[1625559799741,1.39320423,34794.0,34793.0,5.77689303]
[1625559799836,1.98764045,34794.0,34793.0,5.77689303]
[1625559800138,3.00683179,34794.0,34793.0,4.26679062]
[1625559800590,1.98764045,34794.0,34793.0,5.78557883]
[1625559800939,1.90302545,34794.0,34793.0,5.78557883]
[1625559801288,1.90302545,34794.0,34793.0,6.02615427]
[1625559801389,1.56319829,34794.0,34793.0,6.02615427]
[1625559801490,1.25286829,34794.0,34793.0,6.02615427]
[1625559801639,0.99778563,34794.0,34793.0,6.02615427]
[1625559804444,1.08287691,34794.0,34793.0,6.02615427]
[1625559806197,1.25291745,34794.0,34793.0,6.02615427]
[1625559808249,1.59287786,34794.0,34793.0,6.02615427]
[1625559808650,1.33774604,34794.0,34793.0,6.02615427]
[1625559808950,0.99778563,34794.0,34793.0,6.02615427]
[1625559809752,1.67756193,34794.0,34793.0,6.02615427]
[1625559810807,2.69732415,34794.0,34793.0,6.02615427]
[1625559811303,2.69732415,34794.0,34793.0,5.96715427]
[1625559811403,2.95794415,34794.0,34793.0,5.96715427]
[1625559812556,4.14799675,34794.0,34793.0,5.96715427]
[1625559815163,4.65812121,34794.0,34793.0,6.47469048]
[1625559816264,4.71712121,34794.0,34793.0,6.47469048]
[1625559816818,4.71712121,34794.0,34793.0,4.95590227]
[1625559819976,4.71712121,34794.0,34793.0,6.47840799]
[1625559820375,4.71712121,34794.0,34793.0,4.95590227]
[1625559820625,4.65812121,34794.0,34793.0,4.95590227]
[1625559821326,3.46806861,34794.0,34793.0,6.4776349]
[1625559821478,3.52706861,34794.0,34793.0,6.4776349]
[1625559821877,3.46806861,34794.0,34793.0,6.4776349]
[1625559821976,3.20744861,34794.0,34793.0,6.4776349]
[1625559822480,3.26644861,34794.0,34793.0,6.4776349]
[1625559822682,3.20744861,34794.0,34793.0,6.4776349]
[1625559823033,2.96687317,34794.0,34793.0,6.23705946]
[1625559823534,3.68859949,34794.0,34793.0,6.23705946]
[1625559824436,3.74759949,34794.0,34793.0,6.23705946]
[1625559825036,3.68859949,34794.0,34793.0,6.23705946]
[1625559825486,3.74759949,34794.0,34793.0,6.23705946]
[1625559825586,3.68859949,34794.0,34793.0,6.23705946]
[1625559826388,3.74759949,34794.0,34793.0,6.23705946]
[1625559827642,3.68859949,34794.0,34793.0,6.23705946]
[1625559828391,3.74759949,34794.0,34793.0,6.23705946]
[1625559828595,3.68859949,34794.0,34793.0,6.23705946]
[1625559829396,3.74759949,34794.0,34793.0,6.23705946]
[1625559830093,3.68859949,34794.0,34793.0,6.23705946]
[1625559830293,3.74759949,34794.0,34793.0,6.23705946]
[1625559833202,4.93718081,34794.0,34793.0,4.71532683]
[1625559841777,4.87818081,34794.0,34793.0,4.71532683]
[1625559841887,4.63760537,34794.0,34793.0,5.03756683]
[1625559842079,2.96687317,34794.0,34793.0,6.56401455]
[1625559842277,2.96687317,34794.0,34793.0,6.99615455]
[1625559842379,1.94711095,34794.0,34793.0,6.99615455]
[1625559843227,1.26716053,34794.0,34793.0,6.99615455]
[1625559843779,1.35226323,34794.0,34793.0,7.23672999]
[1625559846033,1.01235296,34794.0,34793.0,7.23672999]
[1625559848238,1.26695179,34794.0,34793.0,7.23672999]
[1625559848537,1.94655024,34794.0,34793.0,7.23672999]
[1625559849789,2.18712568,34794.0,34793.0,7.23672999]
[1625559853453,3.20650338,34794.0,34793.0,7.23672999]
[1625559854907,2.18712568,34794.0,34793.0,7.23672999]
[1625559858765,0.99778563,34794.0,34793.0,2.52480659]
[1625559859115,0.99778563,34794.0,34793.0,7.27930024]
[1625559859215,2.18698027,34794.0,34793.0,7.27930024]
[1625559860518,1.50746474,34794.0,34793.0,7.27930024]
[1625559860819,1.84731027,34794.0,34793.0,7.27930024]
[1625559861119,1.50746474,34794.0,34793.0,7.27930024]
[1625559861221,2.18698206,34794.0,34793.0,7.27930024]
[1625559871502,1.50746474,34794.0,34793.0,7.27930024]
[1625559873153,2.18714975,34794.0,34793.0,7.27930024]
[1625559873754,2.18714975,34794.0,34793.0,7.33830024]
[1625559876458,1.50746474,34794.0,34793.0,7.33830024]
[1625559880167,2.18717316,34794.0,34793.0,7.33830024]
[1625559880667,1.50746474,34794.0,34793.0,7.33830024]
[1625559883219,1.84677817,34794.0,34793.0,7.33830024]
[1625559884474,1.50746474,34794.0,34793.0,7.33830024]
[1625559886677,2.18586344,34794.0,34793.0,7.33830024]
[1625559887228,1.50746474,34794.0,34793.0,7.33830024]
[1625559897198,2.1871418,34794.0,34793.0,7.33830024]
[1625559904872,1.50746474,34794.0,34793.0,9.03833481]
[1625559906524,1.84721448,34794.0,34793.0,9.03833481]
[1625559908281,1.50746474,34794.0,34793.0,9.03833481]
[1625559910139,1.2668893,34794.0,34793.0,8.79775937]
[1625559911389,1.50746474,34794.0,34793.0,9.03833481]
[1625559912540,1.50746474,34794.0,34793.0,7.33830024]
[1625559913443,1.50746474,34794.0,34793.0,9.03838276]
[1625559913743,1.49135455,34794.0,34793.0,9.03497933]
[1625559914046,1.50744769,34794.0,34793.0,9.03838136]
[1625559914496,2.18657185,34794.0,34793.0,7.33829884]
[1625559916150,2.18657185,34794.0,34793.0,9.03844032]
[1625559917203,2.18657185,34794.0,34793.0,7.33829884]
[1625559918556,2.18657185,34794.0,34793.0,9.03861378]
[1625559919109,2.18657185,34794.0,34793.0,7.33829884]
[1625559920764,2.18657185,34794.0,34793.0,9.03866153]
[1625559923471,2.18657185,34794.0,34793.0,7.33829884]
[1625559923820,2.18657185,34794.0,34793.0,9.03814549]
[1625559926125,2.18657185,34794.0,34793.0,9.12484549]
[1625559926226,2.18657185,34794.0,34793.0,9.03814549]
[1625559928931,2.18657185,34794.0,34793.0,7.33829884]
[1625559929783,2.18657185,34794.0,34793.0,9.03792191]
[1625559931487,2.18657185,34794.0,34793.0,8.79734647]
[1625559931739,3.20685001,34794.0,34793.0,7.0977234]
[1625559940863,2.18657185,34794.0,34793.0,7.0977234]
[1625559941615,2.18657185,34794.0,34793.0,7.33829884]
[1625559942620,3.20349901,34794.0,34793.0,7.33829884]
[1625559943220,2.18657185,34794.0,34793.0,7.33829884]
[1625559943671,3.20339516,34794.0,34793.0,7.33829884]
[1625559944626,2.18657185,34794.0,34793.0,7.33829884]
[1625559945725,3.20350285,34794.0,34793.0,7.33829884]
[1625559946228,2.18657185,34794.0,34793.0,7.33829884]
[1625559946527,3.20360336,34794.0,34793.0,7.33829884]
[1625559947782,2.18657185,34794.0,34793.0,7.33829884]
[1625559948588,2.24557185,34794.0,34793.0,6.6655834]
[1625559948688,2.46292185,34794.0,34793.0,6.2843434]
[1625559948788,2.52192185,34794.0,34793.0,4.2835434]
[1625559948889,2.52192185,34794.0,34793.0,4.2581434]
[1625559949088,2.5559511,34794.0,34793.0,4.25474137]
[1625559949189,2.4969511,34794.0,34793.0,4.22214137]
[1625559949289,2.4969511,34794.0,34793.0,2.89204137]
[1625559949487,2.5559511,34794.0,34793.0,2.96334137]
[1625559949947,4.53812072,34794.0,34793.0,2.96334137]
[1625559950054,4.47912072,34794.0,34793.0,2.96334137]
[1625559950253,4.42012072,34794.0,34793.0,2.96334137]
[1625559950650,4.38609147,34794.0,34793.0,2.96334137]
[1625559950751,4.38609147,34794.0,34793.0,1.77471796]
[1625559951143,4.38609147,34794.0,34793.0,2.96382354]
[1625559951244,8.03219147,34794.0,34793.0,2.96722623]
[1625559953296,8.09119147,34794.0,34793.0,2.96382354]
[1625559954496,8.09119147,34794.0,34793.0,3.02372354]
[1625559956103,8.09119147,34794.0,34793.0,1.83461796]
[1625559956451,8.15019147,34794.0,34793.0,1.83461796]
[1625559957658,8.15019147,34794.0,34793.0,0.81579789]
[1625559958210,8.15019147,34794.0,34793.0,1.83435549]
[1625559958558,8.15019147,34794.0,34793.0,0.81579789]
[1625559960663,8.15019147,34794.0,34793.0,0.97996102]
[1625559961215,9.66807891,34794.0,34793.0,0.6402331]
[1625559961667,9.66807891,34794.0,34793.0,0.7250744]
[1625559963118,9.66807891,34794.0,34793.0,0.38572341]
[1625559963520,9.66807891,34794.0,34793.0,0.72507127]
[1625559963922,9.66807891,34794.0,34793.0,0.97956097]
[1625559964422,9.49811549,34794.0,34793.0,0.64017]
[1625559964827,11.01437429,34794.0,34793.0,0.72498145]
[1625559965727,9.49811549,34794.0,34793.0,0.38563359]
[1625559967429,9.49811549,34794.0,34793.0,0.72479504]
[1625559967530,9.43911549,34794.0,34793.0,0.72479504]
[1625559967630,9.52531549,34794.0,34793.0,0.72479504]
[1625559967730,9.43911549,34794.0,34793.0,0.72479504]
[1625559967830,9.43911549,34794.0,34793.0,0.97900703]
[1625559968079,9.43911549,34794.0,34793.0,0.63984558]
[1625559968780,9.49811549,34794.0,34793.0,0.63984558]
[1625559969631,9.43911549,34794.0,34793.0,0.63984558]
[1625559969781,9.49811549,34794.0,34793.0,0.63984558]
[1625559970034,9.43911549,34794.0,34793.0,0.63984558]
[1625559970836,9.49811549,34794.0,34793.0,0.63984558]
[1625559973043,9.43911549,34794.0,34793.0,0.63984558]
[1625559973794,9.49811549,34794.0,34793.0,0.63984558]
[1625559974096,9.43911549,34794.0,34793.0,0.63984558]
[1625559974545,9.49811549,34794.0,34793.0,0.63984558]
[1625559974897,9.49811549,34794.0,34793.0,0.97889126]
[1625559975199,9.49811549,34794.0,34793.0,0.72452946]
[1625559975548,9.49811549,34794.0,34793.0,0.63973699]
[1625559977200,9.43911549,34794.0,34793.0,0.63973699]
[1625559977703,9.49811549,34794.0,34793.0,0.63973699]
[1625559977806,9.43911549,34794.0,34793.0,0.63973699]
[1625559978716,9.49811549,34794.0,34793.0,0.63973699]
[1625559979359,9.49811549,34794.0,34793.0,0.97876069]
[1625559980060,9.53214726,34794.0,34793.0,0.97876069]
[1625559980359,9.53214726,34794.0,34793.0,0.72449654]
[1625559980763,9.53214726,34794.0,34793.0,0.21595761]
[1625559981115,9.53214726,34794.0,34793.0,0.63974615]
[1625559981515,9.53214726,34794.0,34793.0,0.47023077]
[1625559981713,9.53214726,34794.0,34793.0,0.97877271]
[1625559982017,9.53214726,34794.0,34793.0,0.63974194]
[1625559982365,9.49811549,34794.0,34793.0,0.63974194]
[1625559982617,9.53214714,34794.0,34793.0,0.63974194]
[1625559982717,9.53214714,34794.0,34793.0,0.97878252]
[1625559983019,9.53214714,34794.0,34793.0,0.63974194]
[1625559984823,9.53214714,34794.0,34793.0,0.97880043]
[1625559986879,9.53214714,34794.0,34793.0,0.63974194]
[1625559991038,9.53214714,34794.0,34793.0,0.72475585]
[1625559991338,9.53214714,34794.0,34793.0,0.38558108]
[1625559994140,9.84171714,34794.0,34793.0,0.38558108]
[1625559994240,9.84171714,34794.0,34793.0,0.7248007]
[1625559995341,9.84171714,34794.0,34793.0,0.38558108]
[1625559996092,11.35767731,34794.0,34793.0,0.38558108]
[1625559999902,7.16143187,34794.0,34793.0,0.72574108]
[1625560000024,7.10243187,34794.0,34793.0,0.72574108]
[1625560000110,7.05230708,34794.0,34793.0,1.69654841]
[1625560000204,7.05230708,34794.0,34793.0,1.75895064]
[1625560000205,6.25220708,34794.0,34793.0,1.75895064]
[1625560000305,6.25220708,34794.0,34793.0,2.25895064]
[1625560000401,4.20330708,34794.0,34793.0,6.26842392]
[1625560000505,0.95933134,34799.0,34793.0,6.28941215]
[1625560000621,0.03795963,34804.0,34793.0,6.23041215]
[1625560000705,0.097,34805.0,34798.0,0.6116502]
[1625560000805,3.0313604,34822.0,34799.0,0.5]
[1625560000903,3.0313604,34822.0,34804.0,0.57743255]
[1625560001012,1.95198767,34811.0,34805.0,0.5]
[1625560001109,3.0313604,34822.0,34805.0,0.559]
[1625560001213,3.0313604,34822.0,34805.0,0.52039826]
[1625560001309,3.0313604,34822.0,34806.0,0.00942953]
[1625560001444,2.33268591,34818.0,34811.0,0.059]
[1625560001521,1.52508591,34818.0,34811.0,0.059]
[1625560001604,1.12098591,34818.0,34816.0,5.1492]
[1625560001705,2.8941604,34822.0,34817.0,0.5]
[1625560001808,1.5774604,34822.0,34817.0,0.5]
[1625560001905,0.9490604,34822.0,34817.0,0.5]
[1625560002006,0.33932275,34820.0,34819.0,0.00931375]
[1625560002111,0.33312275,34820.0,34819.0,0.00931375]
[1625560002213,0.30192275,34820.0,34819.0,0.06831375]
[1625560002310,0.30192275,34820.0,34819.0,0.07430927]
[1625560002410,0.20522275,34820.0,34819.0,0.07430927]
[1625560002512,0.11912275,34820.0,34819.0,0.07430927]
[1625560002609,0.9823,34830.0,34819.0,0.07430927]
[1625560002712,0.9588,34830.0,34819.0,0.07430927]
[1625560002910,0.9588,34830.0,34820.0,0.00929943]
[1625560003011,0.7164,34830.0,34820.0,0.00929943]
[1625560003111,0.7164,34830.0,34820.0,0.07169779]
[1625560003212,0.6677,34830.0,34820.0,0.07169779]
[1625560003313,0.24057544,34857.0,34829.0,0.57743255]
[1625560003412,0.3369,34831.0,34830.0,0.5]
[1625560003512,0.24057544,34857.0,34830.0,1.3691902]
[1625560003614,0.24057544,34857.0,34831.0,0.057]
[1625560003713,0.24057544,34857.0,34832.0,0.00923478]
[1625560003912,0.24057544,34857.0,34832.0,0.06823478]
[1625560004012,0.24057544,34857.0,34843.0,4.2154]
[1625560004115,0.24057544,34857.0,34856.0,0.76325088]
[1625560004715,0.92162988,34869.0,34856.0,0.76325088]
[1625560004830,0.92162988,34869.0,34856.0,1.38125088]
[1625560004831,0.67262988,34869.0,34856.0,1.38125088]
[1625560004936,0.48,34869.0,34856.0,1.38125088]
[1625560005017,0.421,34869.0,34856.0,1.81308488]
[1625560005120,0.4085,34869.0,34856.0,1.81308488]
[1625560005215,0.1663,34869.0,34856.0,1.31308488]
[1625560005316,0.05,34870.0,34856.0,1.31308488]
[1625560005416,0.05,34870.0,34856.0,1.25408488]
[1625560005518,0.0439,34870.0,34856.0,1.25408488]
[1625560005617,0.0392,34870.0,34856.0,1.25408488]
[1625560005717,0.0392,34870.0,34856.0,1.28558488]
[1625560005948,0.0392,34870.0,34868.0,0.24647087]
[1625560006016,0.0392,34870.0,34868.0,0.5750987]
[1625560006132,0.0982,34870.0,34869.0,0.72172632]
[1625560006516,0.0392,34870.0,34869.0,0.72172632]
[1625560008016,0.0982,34870.0,34869.0,0.72172632]
[1625560008116,0.33877544,34870.0,34869.0,0.72172632]
[1625560008921,0.33877544,34870.0,34869.0,0.48115088]
[1625560009022,0.33877544,34870.0,34856.0,0.32206616]
[1625560009222,0.39777544,34870.0,34856.0,0.38106616]
[1625560009321,0.39777544,34870.0,34856.0,0.29957544]
[1625560009622,0.33877544,34870.0,34857.0,4.6772]
[1625560009820,0.27977544,34870.0,34857.0,5.03508]
[1625560009920,0.33877544,34870.0,34857.0,5.03508]
[1625560010022,0.27977544,34870.0,34857.0,5.03508]
[1625560010121,0.33877544,34870.0,34866.0,0.24057544]
[1625560010222,0.33877544,34870.0,34866.0,0.63296544]
[1625560010476,0.27977544,34870.0,34866.0,0.63296544]
[1625560010573,0.33877544,34870.0,34866.0,0.63296544]
[1625560010672,0.27977544,34870.0,34866.0,0.63296544]
[1625560010773,0.33877544,34870.0,34866.0,0.63296544]
[1625560011174,0.33877544,34870.0,34866.0,0.57396544]
[1625560011275,0.33877544,34870.0,34866.0,0.63296544]
[1625560011876,0.27977544,34870.0,34866.0,0.63296544]
[1625560012129,0.27977544,34870.0,34869.0,0.24057544]
[1625560012226,0.27977544,34870.0,34869.0,0.29957544]
[1625560012627,0.33877544,34870.0,34869.0,0.29957544]
[1625560013180,0.33877544,34870.0,34869.0,0.059]
[1625560013281,0.33877544,34870.0,34866.0,0.24057544]
[1625560013481,0.33877544,34870.0,34823.0,2.51555858]
[1625560013482,0.64316544,34870.0,34869.0,0.059]
[1625560013584,0.64316544,34870.0,34849.0,0.08107928]
[1625560013682,0.64316544,34870.0,34849.0,0.14007928]
[1625560013781,0.70216544,34870.0,34849.0,0.19907928]
[1625560013882,0.64316544,34870.0,34849.0,0.14007928]
[1625560013983,0.64316544,34870.0,34849.0,0.059]
[1625560014186,0.64316544,34870.0,34864.0,0.24057544]
[1625560014584,0.33877544,34870.0,34864.0,0.24057544]
[1625560014885,0.27977544,34870.0,34864.0,0.24057544]
[1625560014986,0.27977544,34870.0,34864.0,0.57364544]
[1625560015088,0.33877544,34870.0,34864.0,0.57364544]
[1625560015688,0.33877544,34870.0,34864.0,0.63264544]
[1625560016188,0.33877544,34870.0,34869.0,0.24057544]
[1625560016290,0.33877544,34870.0,34869.0,0.29957544]
[1625560017290,0.33877544,34870.0,34869.0,0.24057544]
[1625560017490,0.33877544,34870.0,34869.0,0.29957544]
[1625560017593,0.33877544,34870.0,34869.0,0.58707544]
[1625560018291,0.27977544,34870.0,34869.0,0.58707544]
[1625560018391,0.33877544,34870.0,34869.0,0.58707544]
[1625560018942,0.27977544,34870.0,34869.0,0.58707544]
[1625560019043,0.33877544,34870.0,34869.0,0.58707544]
[1625560020045,0.33877544,34870.0,34869.0,0.24057544]
[1625560020396,0.39777544,34870.0,34869.0,0.24057544]
[1625560020948,0.33877544,34870.0,34869.0,0.24057544]
[1625560021046,0.27977544,34870.0,34869.0,0.29957544]
[1625560021247,0.33877544,34870.0,34869.0,0.24057544]
[1625560022400,0.39777544,34870.0,34869.0,0.24057544]
[1625560024054,0.39777544,34870.0,34869.0,0.46181544]
[1625560025703,0.33877544,34870.0,34869.0,0.46181544]
[1625560026003,0.33877544,34870.0,34869.0,0.60451544]
[1625560026804,0.33877544,34870.0,34869.0,0.38327544]
[1625560026904,0.39777544,34870.0,34869.0,0.38327544]
[1625560027862,0.33877544,34870.0,34869.0,0.1427]
[1625560028566,0.39777544,34870.0,34869.0,0.1427]
[1625560029163,0.39777544,34870.0,34869.0,0.0837]
[1625560029164,0.57308544,34870.0,34869.0,0.0837]
[1625560029381,0.63208544,34870.0,34869.0,0.0837]
[1625560029491,1.13208544,34870.0,34869.0,0.0837]
[1625560029577,1.13208544,34870.0,34864.0,0.002]
[1625560030215,0.48115088,34865.0,34864.0,0.002]
[1625560030314,0.54015088,34865.0,34864.0,0.002]
[1625560030521,0.59915088,34865.0,34864.0,0.002]
[1625560034978,0.59915088,34865.0,34859.0,0.003]
[1625560035327,0.59915088,34865.0,34864.0,0.002]
[1625560035827,1.09915088,34865.0,34864.0,0.002]
[1625560037379,0.057,34864.0,34859.0,0.003]
[1625560037681,0.116,34864.0,34859.0,0.003]
[1625560038183,4.624,34862.0,34859.0,0.003]
[1625560038283,0.48115088,34860.0,34859.0,0.003]
[1625560038383,0.54015088,34860.0,34859.0,0.003]
[1625560038484,0.59915088,34860.0,34859.0,0.003]
[1625560038585,0.59915088,34860.0,34859.0,0.002]
[1625560040989,1.09915088,34860.0,34859.0,0.002]
[1625560041288,1.09915088,34860.0,34854.0,0.003]
[1625560042239,0.48115088,34855.0,34854.0,0.003]
[1625560042342,0.86623088,34855.0,34854.0,0.003]
[1625560043041,0.86623088,34855.0,34849.0,0.004]
[1625560043346,0.86623088,34855.0,34850.0,0.00339731]
[1625560043543,0.59915088,34855.0,34850.0,0.00339731]
[1625560044148,0.0861,34854.0,34850.0,0.00339731]
[1625560044248,0.1451,34854.0,34853.0,0.003]
[1625560044350,0.2041,34854.0,34853.0,0.003]
[1625560044649,0.118,34854.0,34853.0,0.003]
[1625560045199,0.059,34854.0,34853.0,0.003]
[1625560045421,0.48115088,34855.0,34853.0,0.003]
[1625560045514,0.48115088,34855.0,34853.0,0.06539706]
[1625560045705,0.14148034,34855.0,34853.0,0.06539706]
[1625560045802,0.14148034,34855.0,34853.0,0.062]
[1625560046002,0.14148034,34855.0,34854.0,0.00339678]
[1625560046104,0.14148034,34855.0,34854.0,0.06239678]
[1625560046304,0.14148034,34855.0,34854.0,0.54354766]
[1625560046403,0.14148034,34855.0,34854.0,0.00339678]
[1625560046504,0.20048034,34855.0,34854.0,0.00339678]
[1625560047606,0.20048034,34855.0,34851.0,0.00339687]
[1625560048309,0.20048034,34855.0,34854.0,0.24057544]
[1625560048708,0.20048034,34855.0,34854.0,0.24397237]
[1625560048958,0.14148034,34855.0,34854.0,0.24397237]
[1625560049311,0.20048034,34855.0,34854.0,0.24397237]
[1625560049410,0.14148034,34855.0,34854.0,0.24397237]
[1625560049562,0.20048034,34855.0,34854.0,0.24397237]
[1625560049666,0.14148034,34855.0,34854.0,0.24397237]
[1625560051821,0.14148034,34855.0,34854.0,0.48831829]
[1625560052823,0.14148034,34855.0,34854.0,0.81423251]
[1625560053526,0.14148034,34855.0,34854.0,0.48831829]
[1625560053775,0.14148034,34855.0,34854.0,0.24397237]
[1625560054126,0.14148034,34855.0,34854.0,0.73408363]
[1625560054928,0.14148034,34855.0,34854.0,0.57071321]
[1625560055326,0.14148034,34855.0,34854.0,1.22728905]
[1625560057783,0.14148034,34855.0,34854.0,3.69619495]
[1625560058884,0.20048034,34855.0,34854.0,3.69619495]
[1625560058984,0.14148034,34855.0,34854.0,3.69619495]
[1625560059085,0.14148034,34855.0,34854.0,2.37944514]
[1625560059386,0.14148034,34855.0,34854.0,5.19919411]
[1625560059486,0.14148034,34855.0,34854.0,5.50196411]
[1625560059786,0.001,34860.0,34854.0,5.50196411]
[1625560059888,0.06,34860.0,34854.0,5.50196411]
[1625560060037,0.001,34860.0,34854.0,5.50196411]
[1625560060138,0.06,34860.0,34854.0,5.50196411]
[1625560060238,0.119,34860.0,34859.0,4.97102206]
[1625560060339,0.119,34860.0,34859.0,5.2115975]
[1625560060538,0.119,34860.0,34859.0,4.38366992]
[1625560060739,0.13497826,34860.0,34859.0,4.38366992]
[1625560064954,0.07597826,34860.0,34859.0,4.38366992]
[1625560066055,0.07597826,34860.0,34859.0,5.877137]
[1625560066473,0.07597826,34860.0,34859.0,4.38366992]
[1625560066855,0.01697826,34860.0,34859.0,4.38366992]
[1625560066956,0.01697826,34860.0,34859.0,4.38706644]
[1625560067087,0.01697826,34860.0,34859.0,5.88031686]
[1625560068059,0.01697826,34860.0,34859.0,5.87692034]
[1625560068360,0.01597826,34860.0,34859.0,5.87692034]
[1625560068764,0.01597826,34860.0,34859.0,5.93592034]
[1625560068860,0.001,34865.0,34859.0,5.99831651]
[1625560069161,0.01598287,34864.0,34860.0,0.00339608]
[1625560069277,0.01598287,34864.0,34860.0,2.00852808]
[1625560069364,0.001,34865.0,34860.0,2.00852808]
[1625560069664,0.001,34865.0,34861.0,0.00339581]
[1625560069861,0.001,34865.0,34862.0,1.65541235]
[1625560069961,0.0412,34870.0,34862.0,1.65541235]
[1625560070063,0.0412,34870.0,34863.0,1.65512325]
[1625560070170,0.0412,34870.0,34863.0,1.71751895]
[1625560070264,0.0412,34870.0,34863.0,1.77651895]
[1625560070415,0.0412,34870.0,34869.0,0.48115088]
[1625560070515,0.0412,34870.0,34869.0,6.42695469]
[1625560070717,0.05718075,34870.0,34869.0,6.42695469]
[1625560072121,0.0412,34870.0,34869.0,6.42695469]
[1625560072623,0.0412,34870.0,34869.0,6.49815469]
[1625560073876,0.0412,34870.0,34869.0,6.55715469]
[1625560077009,0.0412,34870.0,34869.0,6.49815469]
[1625560077296,0.0412,34870.0,34869.0,5.00859809]
[1625560077405,0.0982,34870.0,34869.0,5.00859809]
[1625560077513,0.11418125,34870.0,34869.0,5.00859809]
[1625560077597,0.11418125,34870.0,34869.0,3.75574778]
[1625560077793,0.1572,34870.0,34869.0,3.75574778]
[1625560077895,0.0982,34870.0,34869.0,3.75574778]
[1625560077994,0.0982,34870.0,34869.0,5.08064966]
[1625560078094,0.0392,34870.0,34869.0,5.08064966]
[1625560078346,0.0392,34870.0,34869.0,5.13964966]
[1625560078797,0.0392,34870.0,34869.0,6.62749435]
[1625560079149,0.0392,34870.0,34869.0,6.56849435]
[1625560079951,0.1572,34870.0,34869.0,6.56849435]
[1625560080501,0.1572,34870.0,34869.0,6.80906979]
[1625560080602,0.1572,34870.0,34869.0,5.3212251]